bitfinex-derivatives/quotes_SOLF0:USTF0_20251119
["timestamp","ask_amount","ask_price","bid_price","bid_amount"]
[1763555862287,2.66,138.32,138.31,0.04851469]
[1763555862485,2.66,138.32,138.25,6.5146]
[1763555862779,2.66,138.32,138.25,9.7246]
[1763555863580,2.70714535,138.3,138.26,3.21]
[1763555865087,2.70714535,138.3,138.27,3.21]
[1763555865384,0.04714535,138.3,138.27,3.21]
[1763555867889,2.70714535,138.3,138.27,3.21]
[1763555868486,0.04714535,138.3,138.27,3.21]
[1763555869790,0.04714535,138.3,138.29,3.21]
[1763555870581,2.66,138.36,138.32,3.21]
[1763555870783,17.82,138.38,138.32,3.21]
[1763555870983,9.1691,138.37,138.32,3.21]
[1763555871688,2.66,138.35,138.33,0.04791129]
[1763555871896,2.71476367,138.35,138.29,3.21]
[1763555873985,9.171,138.33,138.29,3.21]
[1763555874393,2.66,138.32,138.29,3.21]
[1763555874594,2.7123831,138.32,138.29,3.21]
[1763555874790,0.0523831,138.32,138.29,3.21]
[1763555875391,0.0523831,138.32,138.29,9.7228]
[1763555875592,0.0523831,138.32,138.3,3.21]
[1763555875991,0.0523831,138.32,138.31,3.21]
[1763555876190,2.66,138.38,138.31,3.21]
[1763555876191,9.1689,138.38,138.31,3.21]
[1763555877092,9.1691,138.37,138.34,3.21]
[1763555877290,0.05547677,138.36,138.34,3.21]
[1763555880197,0.05547677,138.36,138.34,9.7204]
[1763555880897,0.05547677,138.36,138.34,3.21]
[1763555882497,0.05547677,138.36,138.35,3.21]
[1763555883503,2.66,138.42,138.37,3.21]
[1763555884401,0.05271902,138.41,138.37,3.21]
[1763555884603,0.05271902,138.41,138.39,3.21]
[1763555885706,0.05271902,138.41,138.38,6.56164801]
[1763555885707,2.71271902,138.41,138.38,0.05314801]
[1763555886094,9.1677,138.4,138.38,0.05314801]
[1763555886800,2.66,138.39,138.38,0.05314801]
[1763555888390,2.71271902,138.41,138.38,3.31314801]
[1763555888608,0.05271902,138.41,138.38,3.31314801]
[1763555890699,0.05271902,138.41,138.38,9.82164801]
[1763555890895,0.05271902,138.41,138.39,3.26]
[1763555891600,6.56011902,138.41,138.39,3.26]
[1763555892799,6.56011902,138.41,138.38,3.31314801]
[1763555894401,0.05271902,138.41,138.38,3.31314801]
[1763555895198,0.05271902,138.41,138.4,3.26]
[1763555899508,0.05271902,138.41,138.39,3.26]
[1763555899711,0.05271902,138.41,138.38,3.31314801]
[1763555899712,2.71271902,138.41,138.38,3.31314801]
[1763555900809,0.05271902,138.41,138.38,3.31314801]
[1763555902022,0.05271902,138.41,138.38,9.82164801]
[1763555902217,0.05271902,138.41,138.39,3.26]
[1763555903214,0.05271902,138.41,138.39,9.7681]
[1763555903407,0.05271902,138.41,138.4,3.26]
[1763555906319,17.8,138.47,138.4,3.26]
[1763555906519,1.96247023,138.49,138.41,3.14]
[1763555906716,3.2199228,138.49,138.41,3.14]
[1763555907022,6.5048,138.47,138.44,3.14]
[1763555907214,6.55441871,138.47,138.44,3.19134087]
[1763555907414,0.04961871,138.47,138.44,3.19134087]
[1763555908021,0.04961871,138.47,138.44,0.05134087]
[1763555908321,0.04961871,138.47,138.44,3.19134087]
[1763555908522,6.505,138.46,138.44,3.19134087]
[1763555909018,0.04961871,138.47,138.44,3.19134087]
[1763555910310,6.5048,138.46,138.44,3.19134087]
[1763555911519,6.5053,138.45,138.44,0.05134087]
[1763555911710,9.1653,138.45,138.44,0.05134087]
[1763555912521,6.5053,138.45,138.44,0.05134087]
[1763555913023,4.67208894,138.47,138.44,0.05134087]
[1763555913921,6.5049,138.46,138.44,0.05134087]
[1763555915719,6.5053,138.45,138.44,0.05134087]
[1763555916927,4.67208894,138.47,138.44,0.05134087]
[1763555917517,6.5049,138.46,138.44,0.05134087]
[1763555917719,6.5049,138.46,138.44,3.08134087]
[1763555918020,2.70961871,138.47,138.44,3.08134087]
[1763555918923,9.1648,138.46,138.44,0.05134087]
[1763555921029,6.5048,138.46,138.44,3.08134087]
[1763555921229,9.1648,138.46,138.44,3.08134087]
[1763555921625,6.5048,138.46,138.44,3.08134087]
[1763555922726,0.04961871,138.47,138.44,3.08134087]
[1763555923730,0.04961871,138.47,138.46,3.03]
[1763555926039,0.04961871,138.47,138.46,9.5348]
[1763555926841,0.04961871,138.47,138.46,3.03]
[1763555927634,0.04961871,138.47,138.46,9.5348]
[1763555929035,124.82382563,138.51,138.49,3.03]
[1763555929724,124.82382563,138.51,138.5,3.03]
[1763555929923,8.46387023,138.54,138.5,3.03]
[1763555929924,1.96247023,138.54,138.5,3.03]
[1763555930129,0.05442844,138.52,138.5,3.03]
[1763555930329,0.05122087,138.52,138.5,3.08040519]
[1763555930731,0.05122087,138.52,138.51,9.5324]
[1763555931237,0.05122087,138.52,138.51,3.03]
[1763555931435,2.66,138.51,138.44,3.03]
[1763555931640,11.12597023,138.49,138.41,3.03]
[1763555931841,1.96247023,138.47,138.41,3.03]
[1763555932643,0.05290881,138.45,138.44,3.03]
[1763555937038,0.05290881,138.45,138.43,3.08375159]
[1763555937244,2.71290881,138.45,138.43,0.05375159]
[1763555938138,0.05290881,138.45,138.43,3.08375159]
[1763555941147,2.71290881,138.45,138.43,0.05375159]
[1763555941738,2.66,138.44,138.43,0.05375159]
[1763555942138,2.66,138.42,138.38,3.03]
[1763555942641,9.1673,138.41,138.38,3.03]
[1763555943038,9.21398544,138.41,138.38,3.03]
[1763555943244,9.21398544,138.41,138.38,3.07848023]
[1763555945939,9.1678,138.4,138.38,0.04848023]
[1763555946135,2.66,138.39,138.38,0.04848023]
[1763555951042,2.66,138.4,138.38,0.04848023]
[1763555952143,2.66,138.39,138.38,0.04848023]
[1763555954554,0.04668544,138.41,138.38,3.19848023]
[1763555956051,0.04668544,138.41,138.4,3.15]
[1763555956455,0.04668544,138.41,138.38,0.04848023]
[1763555956656,0.04668544,138.41,138.39,3.15]
[1763555958549,2.66,138.47,138.41,3.15]
[1763555959049,7.8469732,138.47,138.41,3.15]
[1763555959446,7.8469732,138.47,138.43,6.5062]
[1763555959654,0.05070241,138.46,138.44,0.05081682]
[1763555959849,0.05070241,138.46,138.44,3.20081682]
[1763555960052,2.71070241,138.46,138.44,3.20081682]
[1763555961058,2.71070241,138.46,138.44,0.05081682]
[1763555961461,2.66,138.45,138.39,3.15]
[1763555961663,2.66,138.44,138.39,3.15]
[1763555961964,9.1662,138.43,138.39,3.15]
[1763555962162,2.66,138.43,138.39,3.15]
[1763555962464,0.04977607,138.42,138.4,3.1975033]
[1763555963955,0.04977607,138.42,138.41,3.15]
[1763555964862,0.04977607,138.42,138.41,9.6571]
[1763555965665,0.04977607,138.42,138.41,3.15]
[1763555968469,5.1860031,138.47,138.42,3.27]
[1763555968672,7.8460031,138.47,138.42,3.27]
[1763555968867,3.06599705,138.49,138.42,3.27]
[1763555969263,10.91320916,138.49,138.42,3.27]
[1763555969464,0.05133252,138.47,138.44,0.04578407]
[1763555969771,0.05133252,138.47,138.45,3.27]
[1763555971065,0.05133252,138.47,138.45,9.7752]
[1763555971271,0.05133252,138.47,138.46,3.27]
[1763555972068,0.05133252,138.47,138.44,3.31578407]
[1763555972269,2.71133252,138.47,138.44,0.04578407]
[1763555973066,9.1648,138.46,138.44,0.04578407]
[1763555976876,2.66,138.45,138.44,0.04578407]
[1763555980078,7.85931466,138.45,138.44,0.04578407]
[1763555981877,14.36461466,138.45,138.44,0.04578407]
[1763555982281,7.85931466,138.45,138.44,0.04578407]
[1763555982583,14.36461466,138.45,138.44,0.04578407]
[1763555983184,7.85931466,138.45,138.44,0.04578407]
[1763555984480,14.36461466,138.45,138.44,0.04578407]
[1763555987994,7.85931466,138.45,138.44,0.04578407]
[1763555988697,5.19931466,138.45,138.44,0.04578407]
[1763555989498,7.84931466,138.45,138.44,0.04578407]
[1763555989882,5.19931466,138.45,138.44,0.04578407]
[1763555990190,0.05133252,138.47,138.44,3.16578407]
[1763555991287,0.05133252,138.47,138.45,3.12]
[1763555991488,5.25764373,138.47,138.45,3.12]
[1763555991698,0.05133252,138.47,138.45,3.12]
[1763555992788,2.70133252,138.47,138.44,3.16578407]
[1763555992990,2.65,138.46,138.44,3.16578407]
[1763555993201,2.65,138.45,138.44,0.04578407]
[1763555994895,7.85774725,138.45,138.44,0.04578407]
[1763555995299,5.20774725,138.45,138.44,0.04578407]
[1763555995595,7.85774725,138.45,138.44,0.04578407]
[1763555995798,2.65,138.45,138.44,0.04578407]
[1763555996393,7.85774725,138.45,138.44,0.04578407]
[1763555997702,5.20774725,138.45,138.44,0.04578407]
[1763555998304,2.65,138.46,138.44,0.04578407]
[1763555998305,7.85774725,138.46,138.44,0.04578407]
[1763555998502,5.20774725,138.45,138.44,0.04578407]
[1763555998806,2.65,138.45,138.44,0.04578407]
[1763555999308,7.85774725,138.45,138.44,0.04578407]
[1763556000308,14.36304725,138.45,138.44,0.04578407]
[1763556001508,5.20774725,138.45,138.44,0.04578407]
[1763556001710,5.20774725,138.45,138.44,3.16578407]
[1763556001904,5.20774725,138.45,138.44,0.04578407]
[1763556002201,0.05133252,138.47,138.44,3.16578407]
[1763556002999,0.05133252,138.47,138.46,3.12]
[1763556007007,7.85898609,138.52,138.48,3.12]
[1763556007404,5.20898609,138.52,138.48,3.12]
[1763556007607,5.20898609,138.52,138.51,3.05]
[1763556008007,5.20898609,138.52,138.5,0.04825296]
[1763556008914,5.20898609,138.52,138.5,3.09825296]
[1763556009116,2.66,138.51,138.5,0.04825296]
[1763556011018,7.86898609,138.51,138.5,0.04825296]
[1763556011315,2.66,138.51,138.5,0.04825296]
[1763556011616,7.86898609,138.51,138.5,0.04825296]
[1763556012920,2.66,138.5,138.43,3.05]
[1763556013109,2.66,138.49,138.45,3.05]
[1763556013310,2.66,138.48,138.45,3.05]
[1763556013712,7.86898609,138.49,138.45,3.05]
[1763556013912,0.05199314,138.48,138.47,3.05]
[1763556014710,0.05199314,138.48,138.46,9.60830643]
[1763556014919,2.71199314,138.48,138.46,9.60830643]
[1763556015116,2.71199314,138.48,138.46,3.10360643]
[1763556015313,0.05199314,138.48,138.46,3.10360643]
[1763556015517,2.71199314,138.48,138.46,0.05360643]
[1763556015915,7.91682377,138.48,138.46,0.05360643]
[1763556016819,2.71199314,138.48,138.46,0.05360643]
[1763556018511,7.91642695,138.48,138.46,0.05360643]
[1763556018912,2.71199314,138.48,138.46,0.05360643]
[1763556019922,2.66,138.47,138.46,0.05360643]
[1763556020219,7.86264271,138.47,138.46,0.05360643]
[1763556020623,2.66,138.47,138.46,0.05360643]
[1763556022413,7.86264271,138.47,138.46,0.05360643]
[1763556024427,7.86368212,138.47,138.46,0.05360643]
[1763556029025,5.20368212,138.47,138.46,0.05360643]
[1763556029323,2.64,138.47,138.46,0.05360643]
[1763556030835,11.10409369,138.47,138.46,0.05360643]
[1763556031127,2.64,138.46,138.41,3.2]
[1763556031321,2.64,138.45,138.41,3.2]
[1763556031514,2.64,138.44,138.41,3.2]
[1763556031927,2.6952896,138.44,138.41,3.25240993]
[1763556032624,0.0552896,138.44,138.43,3.2]
[1763556033932,0.0552896,138.44,138.43,9.7062]
[1763556035232,2.64,138.48,138.46,3.2]
[1763556036031,5.19681753,138.49,138.46,3.2]
[1763556036233,7.88273613,138.49,138.46,3.25024684]
[1763556036434,2.64,138.48,138.46,0.05024684]
[1763556036622,7.83681753,138.48,138.46,0.05024684]
[1763556037224,5.19681753,138.47,138.46,0.05024684]
[1763556037425,2.64,138.48,138.46,0.05024684]
[1763556037632,5.19681753,138.48,138.47,3.07]
[1763556037833,0.0459186,138.49,138.47,3.07]
[1763556038033,2.7059186,138.49,138.47,3.07]
[1763556039248,0.0459186,138.49,138.47,3.07]
[1763556039532,0.0459186,138.49,138.47,9.5743]
[1763556040032,2.66,138.48,138.46,0.05024684]
[1763556040235,0.0459186,138.49,138.46,3.12024684]
[1763556040424,2.7059186,138.49,138.46,3.12024684]
[1763556040621,2.7059186,138.49,138.46,0.05024684]
[1763556040825,2.66,138.48,138.46,0.05024684]
[1763556042740,7.85681753,138.48,138.46,0.05024684]
[1763556043542,7.85681753,138.48,138.46,3.12024684]
[1763556043836,5.19681753,138.47,138.46,3.12024684]
[1763556044044,2.66,138.48,138.46,9.62494684]
[1763556044239,0.0459186,138.49,138.47,3.07]
[1763556046038,0.0459186,138.49,138.47,9.5741]
[1763556046935,5.24273613,138.49,138.47,9.5741]
[1763556047239,0.0459186,138.49,138.47,9.5741]
[1763556050948,0.0459186,138.49,138.48,9.5738]
[1763556054038,5.19413812,138.53,138.51,3.07]
[1763556054244,7.85413812,138.53,138.51,3.07]
[1763556055049,7.90516744,138.53,138.51,3.11968288]
[1763556057641,7.90516744,138.53,138.51,9.62208288]
[1763556057841,2.71102932,138.53,138.51,9.62208288]
[1763556058337,0.05102932,138.53,138.51,9.62208288]
[1763556058536,0.05102932,138.53,138.52,3.07]
[1763556059443,2.71102932,138.53,138.51,9.62208288]
[1763556060152,2.71102932,138.53,138.51,3.11968288]
[1763556060350,2.71102932,138.53,138.51,0.04968288]
[1763556060549,7.88592544,138.53,138.51,3.11968288]
[1763556060951,2.71102932,138.53,138.51,3.11968288]
[1763556061250,2.71102932,138.53,138.51,9.62198288]
[1763556061456,0.05102932,138.53,138.52,3.07]
[1763556063143,0.05102932,138.53,138.52,9.572]
[1763556066153,5.16589905,138.57,138.55,3.07]
[1763556066555,7.82589905,138.57,138.55,3.07]
[1763556067353,0.0547474,138.57,138.55,9.61791129]
[1763556067553,0.0547474,138.57,138.56,3.07]
[1763556067944,0.0547474,138.57,138.56,9.5701]
[1763556069849,0.0547474,138.57,138.56,3.07]
[1763556071154,0.0547474,138.57,138.55,3.06751129]
[1763556071459,2.7047474,138.57,138.55,3.06751129]
[1763556072248,0.0547474,138.57,138.55,9.56801129]
[1763556072556,0.0547474,138.57,138.56,3.02]
[1763556073846,0.0547474,138.57,138.56,9.5201]
[1763556084877,0.0547474,138.57,138.56,3.02]
[1763556085073,0.0547474,138.57,138.55,3.04751129]
[1763556085866,2.7047474,138.57,138.55,3.04751129]
[1763556086674,0.0547474,138.57,138.55,3.04751129]
[1763556088479,0.0547474,138.57,138.55,9.54801129]
[1763556088772,0.0547474,138.57,138.56,3.0]
[1763556090768,0.0547474,138.57,138.55,0.04751129]
[1763556090769,2.7047474,138.57,138.55,0.04751129]
[1763556091273,2.65,138.56,138.55,0.04751129]
[1763556091973,9.1501,138.56,138.55,0.04751129]
[1763556092371,14.31051106,138.56,138.55,0.04751129]
[1763556092570,2.65,138.55,138.53,3.0]
[1763556093775,2.703937,138.55,138.53,3.04609507]
[1763556095982,9.204537,138.55,138.53,0.04609507]
[1763556096278,2.65,138.54,138.53,0.04609507]
[1763556097674,9.151,138.54,138.53,0.04609507]
[1763556099482,14.32144722,138.54,138.53,0.04609507]
[1763556099678,2.66,138.51,138.46,3.1]
[1763556100484,2.66,138.5,138.48,3.1]
[1763556100685,2.71534616,138.5,138.48,3.14681158]
[1763556102685,0.05534616,138.5,138.48,3.14681158]
[1763556103887,0.05534616,138.5,138.49,9.6034]
[1763556108798,0.05534616,138.5,138.49,3.1]
[1763556111900,0.05534616,138.5,138.49,9.6034]
[1763556112291,0.05534616,138.5,138.49,3.1]
[1763556114987,0.05534616,138.5,138.49,9.6034]
[1763556116804,0.05534616,138.5,138.49,3.1]
[1763556118000,0.05534616,138.5,138.49,9.6034]
[1763556119707,0.05534616,138.5,138.49,3.1]
[1763556120207,2.71534616,138.5,138.48,9.65061158]
[1763556120411,0.05534616,138.5,138.49,3.1]
[1763556120998,0.05534616,138.5,138.49,9.6034]
[1763556126006,0.05534616,138.5,138.49,3.1]
[1763556128510,2.71534616,138.5,138.48,0.04681158]
[1763556128704,0.05534616,138.5,138.48,3.19681158]
[1763556129599,2.71534616,138.5,138.48,3.19681158]
[1763556130896,2.71534616,138.5,138.48,9.70061158]
[1763556131095,0.05534616,138.5,138.49,3.15]
[1763556131295,2.71534616,138.5,138.48,9.70061158]
[1763556131509,2.71534616,138.5,138.48,3.19681158]
[1763556132007,0.05534616,138.5,138.48,3.19681158]
[1763556132510,5.16923697,138.52,138.51,9.6524]
[1763556132712,9.38597969,138.57,138.52,3.15]
[1763556132902,5.17174842,138.56,138.52,3.15]
[1763556133100,7.83174842,138.56,138.52,3.15]
[1763556133304,2.66,138.56,138.52,3.15]
[1763556133804,0.05255528,138.55,138.54,3.15]
[1763556135217,2.71255528,138.55,138.53,3.20193126]
[1763556135712,0.05255528,138.55,138.53,3.20193126]
[1763556136114,9.21315528,138.55,138.53,3.20193126]
[1763556137213,9.161,138.54,138.53,0.05193126]
[1763556143422,15.88697969,138.54,138.53,0.05193126]
[1763556145338,9.161,138.54,138.53,0.05193126]
[1763556147819,2.65,138.51,138.47,3.26]
[1763556148206,2.65,138.51,138.47,9.764]
[1763556148416,2.65,138.51,138.48,3.26]
[1763556148714,2.65,138.5,138.46,3.26]
[1763556148918,2.65,138.49,138.48,0.04598274]
[1763556149107,17.77,138.5,138.48,3.30598274]
[1763556149312,17.77,138.5,138.48,0.04598274]
[1763556150218,2.65,138.49,138.48,0.04598274]
[1763556150812,15.12,138.5,138.48,3.30598274]
[1763556151015,17.77,138.5,138.48,3.30598274]
[1763556151420,15.12,138.5,138.48,3.30598274]
[1763556153427,17.77,138.5,138.48,3.30598274]
[1763556153828,15.12,138.5,138.49,3.26]
[1763556154130,0.05254953,138.51,138.49,3.26]
[1763556156933,0.05254953,138.51,138.49,9.7633]
[1763556157128,0.05254953,138.51,138.5,3.26]
[1763556158430,9.1605,138.56,138.52,3.28]
[1763556158431,9.40577059,138.56,138.52,3.28]
[1763556159232,2.66,138.56,138.52,3.28]
[1763556159433,0.05407865,138.55,138.53,3.32829115]
[1763556160232,2.71407865,138.55,138.53,3.32829115]
[1763556165243,0.05407865,138.55,138.54,3.28]
[1763556165828,6.74577059,138.58,138.56,3.28]
[1763556166035,24.52577059,138.6,138.56,3.28]
[1763556166237,2.66,138.59,138.56,3.28]
[1763556166934,9.20473859,138.59,138.56,3.3293905]
[1763556167145,2.66,138.58,138.56,0.0493905]
[1763556168150,2.66,138.58,138.56,3.3293905]
[1763556168352,0.04593859,138.59,138.56,3.3293905]
[1763556169446,0.04593859,138.59,138.57,3.28]
[1763556170344,2.70593859,138.59,138.57,3.28]
[1763556171752,0.04593859,138.59,138.57,3.28]
[1763556172546,2.70593859,138.59,138.57,3.28]
[1763556172749,2.66,138.58,138.56,0.0493905]
[1763556173448,2.66,138.58,138.56,3.3293905]
[1763556173654,2.66,138.57,138.56,0.0493905]
[1763556177152,0.04593859,138.59,138.58,3.28]
[1763556180153,2.70593859,138.59,138.56,0.0493905]
[1763556180546,9.1592,138.58,138.56,0.0493905]
[1763556181159,2.66,138.58,138.56,0.0493905]
[1763556182750,9.1592,138.58,138.56,0.0493905]
[1763556182949,2.66,138.57,138.56,0.0493905]
[1763556185557,9.1596,138.57,138.56,0.0493905]
[1763556186258,2.66,138.57,138.56,0.0493905]
[1763556195068,9.1596,138.57,138.56,0.0493905]
[1763556197670,2.65,138.54,138.5,3.0]
[1763556197880,2.65,138.54,138.47,3.0]
[1763556198680,0.0482306,138.52,138.5,3.0]
[1763556199073,0.0482306,138.52,138.51,9.5024]
[1763556199377,15.1,138.57,138.52,3.0]
[1763556199578,17.75,138.57,138.52,3.0]
[1763556200478,0.05542245,138.56,138.54,3.0]
[1763556203478,2.70542245,138.56,138.54,3.0]
[1763556204481,0.05542245,138.56,138.54,3.0]
[1763556211284,0.05542245,138.56,138.55,3.01]
[1763556212881,2.69542245,138.56,138.54,9.5109]
[1763556213083,0.05542245,138.56,138.55,3.01]
[1763556219392,2.71542245,138.56,138.54,3.17]
[1763556219899,2.66,138.54,138.53,0.05514965]
[1763556220084,2.66,138.55,138.53,3.22514965]
[1763556220286,9.4332651,138.56,138.53,3.22514965]
[1763556220287,2.71542245,138.56,138.53,3.22514965]
[1763556220584,9.21552245,138.56,138.53,3.22514965]
[1763556220990,0.05542245,138.56,138.53,3.22514965]
[1763556221289,2.71542245,138.56,138.53,3.22514965]
[1763556221501,0.05542245,138.56,138.53,3.22514965]
[1763556221685,0.05542245,138.56,138.54,3.17]
[1763556223495,2.71542245,138.56,138.54,3.17]
[1763556223700,9.21562245,138.56,138.54,3.17]
[1763556223890,15.9334651,138.56,138.54,3.17]
[1763556227403,9.1606,138.55,138.53,3.22514965]
[1763556227697,2.66,138.54,138.53,0.05514965]
[1763556227888,9.37784265,138.54,138.53,0.05514965]
[1763556228903,15.87884265,138.54,138.53,0.05514965]
[1763556230101,9.37784265,138.54,138.53,0.05514965]
[1763556230404,24.47784265,138.55,138.53,3.22514965]
[1763556231291,30.97844265,138.55,138.53,3.22514965]
[1763556231805,24.2606,138.55,138.53,3.22514965]
[1763556232397,24.47784265,138.55,138.53,3.22514965]
[1763556232599,0.05542245,138.56,138.53,3.22514965]
[1763556232600,9.4332651,138.56,138.53,3.22514965]
[1763556232798,17.81542245,138.56,138.53,3.22514965]
[1763556234305,17.81542245,138.56,138.54,3.17]
[1763556234306,15.15542245,138.56,138.54,3.17]
[1763556235107,2.66,138.55,138.53,0.05514965]
[1763556236408,2.66,138.55,138.53,3.22514965]
[1763556236809,21.8732651,138.56,138.53,3.22514965]
[1763556237000,0.05542245,138.56,138.53,3.22514965]
[1763556237202,0.05542245,138.56,138.53,9.72654965]
[1763556237505,0.05542245,138.56,138.54,3.17]
[1763556238200,0.05542245,138.56,138.55,9.6706]
[1763556241105,6.71784265,138.61,138.58,3.17]
[1763556241306,9.37784265,138.61,138.58,3.17]
[1763556242114,15.925283,138.61,138.58,3.2248129]
[1763556243811,0.04954035,138.61,138.58,3.2248129]
[1763556245202,0.04954035,138.61,138.59,6.4987]
[1763556245408,0.04954035,138.61,138.6,3.17]
[1763556253920,2.70954035,138.61,138.59,3.16]
[1763556254323,0.04954035,138.61,138.59,3.16]
[1763556258723,0.04954035,138.61,138.59,9.6586]
[1763556258924,0.04954035,138.61,138.59,3.16]
[1763556259924,0.04954035,138.61,138.6,9.6582]
[1763556261720,4.61649326,138.65,138.58,0.0548129]
[1763556261721,1.25586431,138.66,138.63,3.16]
[1763556262020,9.37784265,138.73,138.65,3.16]
[1763556262220,2.66,138.73,138.67,3.16]
[1763556262717,0.05256009,138.71,138.7,3.16]
[1763556263325,0.05256009,138.71,138.7,9.6535]
[1763556264026,6.4915,138.75,138.71,3.16]
[1763556264227,9.1415,138.75,138.71,3.16]
[1763556264423,1.25507168,138.76,138.71,6.4929]
[1763556264623,1.25507168,138.76,138.7,1.95649326]
[1763556264624,2.65,138.76,138.72,2.97]
[1763556265126,0.05559444,138.75,138.73,3.01793448]
[1763556266324,0.05559444,138.75,138.73,9.50993448]
[1763556266532,0.05559444,138.75,138.74,2.97]
[1763556267215,0.05559444,138.75,138.73,3.01793448]
[1763556267421,2.70559444,138.75,138.73,0.04793448]
[1763556267930,17.80559444,138.75,138.73,0.04793448]
[1763556268223,2.65,138.74,138.73,0.04793448]
[1763556269233,2.65,138.74,138.7,2.97]
[1763556269930,6.4922,138.73,138.7,2.97]
[1763556270130,9.1422,138.73,138.7,3.01709704]
[1763556272432,2.65,138.72,138.7,0.04709704]
[1763556272631,2.65,138.71,138.7,0.04709704]
[1763556272932,0.05448578,138.72,138.7,0.04709704]
[1763556273136,2.70448578,138.72,138.7,0.04709704]
[1763556274234,9.19718578,138.72,138.7,0.04709704]
[1763556276535,9.19718578,138.72,138.7,3.01709704]
[1763556276536,0.05448578,138.72,138.7,3.01709704]
[1763556277750,0.05448578,138.72,138.7,9.51049704]
[1763556277951,0.05448578,138.72,138.71,3.29]
[1763556278349,0.05448578,138.72,138.7,3.33709704]
[1763556279943,0.05448578,138.72,138.71,3.29]
[1763556282752,0.05448578,138.72,138.7,3.33709704]
[1763556282953,0.05448578,138.72,138.7,0.04709704]
[1763556282954,2.70448578,138.72,138.7,0.04709704]
[1763556283348,2.70448578,138.72,138.7,3.33709704]
[1763556283545,2.65,138.71,138.7,0.04709704]
[1763556285251,2.70448578,138.72,138.7,0.04709704]
[1763556287152,9.19718578,138.72,138.7,0.04709704]
[1763556288242,2.65,138.71,138.7,0.04709704]
[1763556299260,9.1431,138.71,138.7,0.04709704]
[1763556299464,9.1431,138.71,138.63,3.29]
[1763556299465,2.65,138.7,138.63,3.29]
[1763556299767,2.65,138.68,138.63,3.29]
[1763556300354,2.65,138.66,138.64,0.05041185]
[1763556301468,2.6967951,138.67,138.64,3.34041185]
[1763556302471,2.6967951,138.67,138.64,9.83671185]
[1763556302871,2.65,138.66,138.64,0.05041185]
[1763556303770,9.1454,138.66,138.64,0.05041185]
[1763556303970,2.65,138.65,138.64,0.05041185]
[1763556306070,2.65,138.62,138.59,3.29]
[1763556306267,2.65,138.62,138.56,3.29]
[1763556307174,2.70519858,138.6,138.58,3.33802541]
[1763556307776,2.70519858,138.6,138.58,0.04802541]
[1763556308567,2.70519858,138.6,138.58,3.17802541]
[1763556309472,0.05519858,138.6,138.59,3.13]
[1763556309672,8.95712353,138.68,138.59,3.13]
[1763556309673,2.66,138.67,138.61,3.13]
[1763556310871,0.04697829,138.65,138.63,9.67654166]
[1763556311079,0.04697829,138.65,138.64,3.13]
[1763556314370,2.70697829,138.65,138.63,0.04984166]
[1763556315473,0.04697829,138.65,138.63,3.17984166]
[1763556315977,0.04697829,138.65,138.64,3.13]
[1763556317282,2.66,138.69,138.65,3.13]
[1763556317485,2.66,138.69,138.66,3.13]
[1763556317683,2.66,138.69,138.66,9.6254]
[1763556318284,2.70582182,138.69,138.66,9.67872819]
[1763556321587,2.70582182,138.69,138.66,3.18332819]
[1763556323484,0.04582182,138.69,138.66,3.18332819]
[1763556323784,2.70582182,138.69,138.66,3.18332819]
[1763556324190,2.70582182,138.69,138.66,9.67862819]
[1763556325892,2.70582182,138.69,138.67,3.13]
[1763556327485,2.65,138.68,138.66,0.05332819]
[1763556328186,2.65,138.68,138.66,3.06332819]
[1763556328690,0.04582182,138.69,138.66,9.55862819]
[1763556328993,0.04582182,138.69,138.67,3.01]
[1763556329478,0.04582182,138.69,138.68,9.5045]
[1763556330984,17.73,138.75,138.72,3.01]
[1763556331186,2.65,138.75,138.72,3.01]
[1763556331388,6.72189824,138.78,138.72,3.01]
[1763556331389,2.65,138.76,138.72,3.01]
[1763556331986,2.69857442,138.75,138.73,0.05046201]
[1763556335989,0.04857442,138.75,138.73,3.06046201]
[1763556336795,0.04857442,138.75,138.74,3.01]
[1763556339398,2.65,138.8,138.74,3.01]